bitfinex-derivatives/quotes_BNBF0:USTF0_20250609
["timestamp","ask_amount","ask_price","bid_price","bid_amount"]
[1749498322580,1.0920033,659.98,659.16,0.30341646]
[1749498322780,1.0920033,659.97,659.16,0.30341646]
[1749498323082,1.0920033,660.09,659.16,0.30341646]
[1749498323283,1.0920033,660.08,659.16,0.30341646]
[1749498323482,1.0920033,660.07,659.16,0.30341646]
[1749498323680,1.0920033,660.06,659.16,0.30341646]
[1749498323882,1.0920033,660.05,659.16,0.30341646]
[1749498324084,1.0920033,660.04,659.16,0.30341646]
[1749498324282,1.0920033,660.03,659.16,0.30341646]
[1749498324482,1.0920033,660.02,659.16,0.30341646]
[1749498324786,1.0920033,660.01,659.16,0.30341646]
[1749498324985,1.0920033,660.0,659.16,0.30341646]
[1749498325183,1.0920033,659.99,659.16,0.30341646]
[1749498325385,1.0920033,659.98,659.16,0.30341646]
[1749498325587,1.0920033,659.97,659.16,0.30341646]
[1749498325790,1.0920033,659.96,659.16,0.30341646]
[1749498325988,1.0920033,659.95,659.16,0.30341646]
[1749498326285,1.0920033,659.94,659.16,0.30341646]
[1749498326487,1.0920033,659.93,659.16,0.30341646]
[1749498326683,1.0920033,659.92,659.16,0.30341646]
[1749498326888,1.0920033,659.91,659.16,0.30341646]
[1749498327184,1.0920033,659.9,659.16,0.30341646]
[1749498327384,2.26100513,660.07,659.16,0.30341646]
[1749498327593,1.62421726,660.06,659.16,0.30341646]
[1749498327884,1.09245897,660.05,659.16,0.30341646]
[1749498328089,1.09245897,660.04,659.16,0.30341646]
[1749498328289,1.09245897,660.03,659.16,0.30341646]
[1749498328485,1.09245897,660.02,659.16,0.30341646]
[1749498328685,1.09245897,660.01,659.16,0.30341646]
[1749498328888,1.09245897,660.0,659.16,0.30341646]
[1749498329084,1.09245897,659.99,659.16,0.30341646]
[1749498329287,1.71242308,660.08,659.16,0.30341646]
[1749498329288,1.09245897,659.98,659.16,0.30341646]
[1749498329485,1.09245897,659.97,659.16,0.30341646]
[1749498329686,1.09245897,659.96,659.16,0.30341646]
[1749498329886,1.09245897,659.95,659.16,0.30341646]
[1749498330187,1.09245897,659.94,659.16,0.30341646]
[1749498330390,1.09245897,659.93,659.16,0.30341646]
[1749498330591,1.09245897,659.92,659.16,0.30341646]
[1749498330792,1.09245897,659.91,659.16,0.30341646]
[1749498330989,1.09245897,659.9,659.16,0.30341646]
[1749498331188,1.71242502,660.07,659.16,0.30341646]
[1749498331492,0.26374826,660.1,659.16,0.30341646]
[1749498331493,1.09262428,660.06,659.16,0.30341646]
[1749498331688,1.09262428,660.05,659.16,0.30341646]
[1749498331989,1.09262428,660.04,659.16,0.30341646]
[1749498332193,1.09262428,660.03,659.16,0.30341646]
[1749498332394,1.09262428,660.02,659.16,0.30341646]
[1749498332694,1.09262428,660.01,659.16,0.30341646]
[1749498332991,1.09262428,660.0,659.16,0.30341646]
[1749498333195,1.09262428,659.99,659.16,0.30341646]
[1749498333397,1.09262428,659.98,659.16,0.30341646]
[1749498333597,1.09262428,659.97,659.16,0.30341646]
[1749498333798,1.09262428,659.96,659.16,0.30341646]
[1749498333995,1.09262428,659.95,659.16,0.30341646]
[1749498334202,1.09262428,659.94,659.16,0.30341646]
[1749498334394,1.09262428,659.93,659.16,0.30341646]
[1749498334596,1.09262428,659.92,659.16,0.30341646]
[1749498334895,1.09262428,659.91,659.16,0.30341646]
[1749498335096,1.09262428,659.9,659.16,0.30341646]
[1749498335294,2.79308203,660.08,659.16,0.30341646]
[1749498335597,2.70538227,660.07,659.16,0.30341646]
[1749498335795,1.09296803,660.06,659.16,0.30341646]
[1749498335997,1.09296803,660.05,659.16,0.30341646]
[1749498336199,1.09296803,660.04,659.16,0.30341646]
[1749498336399,1.09296803,660.03,659.16,0.30341646]
[1749498336697,1.09296803,660.02,659.16,0.30341646]
[1749498336902,1.09296803,660.01,659.16,0.30341646]
[1749498337095,1.09296803,660.0,659.16,0.30341646]
[1749498337299,0.26374826,660.1,659.16,0.30341646]
[1749498337300,1.09296803,659.99,659.16,0.30341646]
[1749498337500,1.09296803,659.98,659.16,0.30341646]
[1749498337702,1.09296803,659.97,659.16,0.30341646]
[1749498337901,1.09296803,659.96,659.16,0.30341646]
[1749498338202,1.09296803,659.95,659.16,0.30341646]
[1749498338502,1.09296803,659.94,659.16,0.30341646]
[1749498338703,1.09296803,659.93,659.16,0.30341646]
[1749498338998,1.09296803,659.92,659.16,0.30341646]
[1749498339202,1.09296803,659.91,659.16,0.30341646]
[1749498339396,1.09296803,659.9,659.16,0.30341646]
[1749498339597,1.09296803,660.07,659.16,0.30341646]
[1749498339801,1.09296803,660.06,659.16,0.30341646]
[1749498340103,1.09296803,660.05,659.16,0.30341646]
[1749498340302,1.09296803,660.04,659.16,0.30341646]
[1749498340504,1.09296803,660.03,659.16,0.30341646]
[1749498340702,1.09296803,660.02,659.16,0.30341646]
[1749498340901,1.09296803,660.01,659.16,0.30341646]
[1749498341100,1.09296803,660.0,659.16,0.30341646]
[1749498341406,1.09296803,659.99,659.16,0.30341646]
[1749498341704,1.09296803,659.98,659.16,0.30341646]
[1749498341906,1.09296803,659.97,659.16,0.30341646]
[1749498342100,1.09296803,659.96,659.16,0.30341646]
[1749498342300,0.53156712,660.01,659.16,0.30341646]
[1749498342301,1.09296803,659.95,659.16,0.30341646]
[1749498342504,1.09296803,659.94,659.16,0.30341646]
[1749498342801,1.09296803,659.93,659.16,0.30341646]
[1749498343004,1.09296803,659.92,659.16,0.30341646]
[1749498343205,1.09296803,659.91,659.16,0.30341646]
[1749498343402,1.09296803,659.9,659.16,0.30341646]
[1749498343602,1.09296803,659.89,659.16,0.30341646]
[1749498343904,1.09296803,659.88,659.16,0.30341646]
[1749498344102,1.09296803,659.87,659.16,0.30341646]
[1749498344304,1.09296803,659.86,659.16,0.30341646]
[1749498344505,1.09296803,660.0,659.16,0.30341646]
[1749498344703,1.09296803,659.99,659.16,0.30341646]
[1749498344906,1.09296803,659.98,659.16,0.30341646]
[1749498345203,1.09296803,659.97,659.16,0.30341646]
[1749498345407,1.09296803,659.96,659.16,0.30341646]
[1749498345604,1.09296803,659.95,659.16,0.30341646]
[1749498345808,1.09296803,659.94,659.16,0.30341646]
[1749498346009,1.09296803,659.93,659.16,0.30341646]
[1749498346209,1.09296803,659.92,659.16,0.30341646]
[1749498346410,1.09296803,659.91,659.16,0.30341646]
[1749498346609,1.09296803,659.9,659.16,0.30341646]
[1749498346808,1.09296803,659.89,659.16,0.30341646]
[1749498347010,1.09296803,659.88,659.16,0.30341646]
[1749498347210,1.09296803,659.87,659.16,0.30341646]
[1749498347407,1.09296803,659.86,659.16,0.30341646]
[1749498347711,3.35301679,659.95,659.16,0.30341646]
[1749498347911,3.88434898,659.94,659.16,0.30341646]
[1749498348109,2.17261732,659.93,659.16,0.30341646]
[1749498348308,3.35295154,659.92,659.16,0.30341646]
[1749498348608,2.70389037,659.91,659.16,0.30341646]
[1749498348908,3.35218694,659.9,659.16,0.30341646]
[1749498349110,2.27275007,659.89,659.16,0.30341646]
[1749498349309,2.2727532,659.88,659.16,0.30341646]
[1749498349511,2.80404546,659.87,659.16,0.30341646]
[1749498349709,2.70363603,659.86,659.16,0.30341646]
[1749498349908,2.17234633,659.85,659.16,0.30341646]
[1749498350115,1.09296803,659.84,659.16,0.30341646]
[1749498350309,4.48804382,660.05,659.16,0.30341646]
[1749498350513,2.80403661,660.04,659.16,0.30341646]
[1749498350712,3.88335742,660.03,659.16,0.30341646]
[1749498350914,1.13590514,659.99,659.16,0.30341646]
[1749498351110,2.22887317,659.98,659.16,0.30341646]
[1749498351411,1.62422051,659.97,659.16,0.30341646]
[1749498351710,1.62421005,659.96,659.16,0.30341646]
[1749498352019,1.09296803,659.95,659.16,0.30341646]
[1749498352314,1.09296803,659.94,659.16,0.30341646]
[1749498352509,1.09296803,659.93,659.16,0.30341646]
[1749498352712,1.17323404,659.96,659.16,0.30341646]
[1749498352713,1.09296803,659.92,659.16,0.30341646]
[1749498352912,1.09296803,659.91,659.16,0.30341646]
[1749498353214,1.09296803,659.9,659.16,0.30341646]
[1749498353408,1.09296803,659.89,659.16,0.30341646]
[1749498353610,1.09296803,659.88,659.16,0.30341646]
[1749498353807,1.09296803,659.87,659.16,0.30341646]
[1749498354011,2.16542889,659.98,659.16,0.30341646]
[1749498354211,2.26739398,659.97,659.16,0.30341646]
[1749498354411,2.69394378,659.96,659.16,0.30341646]
[1749498354613,2.16543218,659.95,659.16,0.30341646]
[1749498354812,2.26738624,659.94,659.16,0.30341646]
[1749498355011,1.09296803,659.93,659.16,0.30341646]
[1749498355213,1.09296803,659.92,658.95,0.26384324]
[1749498355409,1.09296803,659.91,658.95,0.26384324]
[1749498355610,1.09296803,659.9,658.95,0.26384324]
[1749498355815,1.09296803,659.89,658.95,0.26384324]
[1749498356015,3.33899935,659.96,658.95,0.26384324]
[1749498356215,2.79585673,659.95,658.95,0.26384324]
[1749498356412,2.16458845,659.94,658.95,0.26384324]
[1749498356618,3.86732513,659.93,658.95,0.26384324]
[1749498356917,2.16454308,659.92,658.95,0.26384324]
[1749498357115,1.09296803,659.91,658.95,0.26384324]
[1749498357319,1.09296803,659.9,658.95,0.26384324]
[1749498357614,1.09296803,659.89,658.95,0.26384324]
[1749498357819,1.09296803,659.88,658.95,0.26384324]
[1749498358019,1.09296803,659.92,658.95,0.26384324]
[1749498358214,1.08689777,659.91,658.95,0.26384324]
[1749498358518,1.08689777,659.9,658.95,0.26384324]
[1749498358715,1.08689777,659.95,658.95,0.26384324]
[1749498358914,2.77035276,659.97,658.95,0.26384324]
[1749498358915,1.08689777,659.94,658.95,0.26384324]
[1749498359118,1.08689777,659.93,658.95,0.26384324]
[1749498359314,1.08689777,659.92,658.95,0.26384324]
[1749498359615,1.08689777,659.91,658.95,0.26384324]
[1749498359815,1.61484971,659.94,658.95,0.26384324]
[1749498360015,1.08689777,659.93,658.95,0.26384324]
[1749498360222,1.08689777,659.92,658.95,0.26384324]
[1749498360417,1.08689777,659.91,658.95,0.26384324]
[1749498360720,1.08689777,659.9,658.95,0.26384324]
[1749498360922,1.13084221,660.0,658.95,0.26384324]
[1749498360923,2.15741862,659.99,658.95,0.26384324]
[1749498361121,3.85620462,659.98,658.95,0.26384324]
[1749498361317,2.25766345,659.97,658.95,0.26384324]
[1749498361515,1.61451063,659.96,658.95,0.26384324]
[1749498361820,1.08689777,659.95,658.95,0.26384324]
[1749498362022,1.08689777,659.94,658.95,0.26384324]
[1749498362216,1.08689777,659.93,658.95,0.26384324]
[1749498362421,1.08689777,659.92,658.95,0.26384324]
[1749498362622,1.08689777,659.91,658.53,3.74958223]
[1749498362818,2.76720573,659.98,658.55,0.30369751]
[1749498363119,1.77353583,660.1,658.8,0.26392728]
[1749498363120,1.12989519,659.94,658.8,0.26392728]
[1749498363322,1.12989519,659.91,658.8,0.26392728]
[1749498363519,1.0854871,659.9,658.8,0.26392728]
[1749498363719,1.0854871,659.89,658.8,0.26392728]
[1749498363921,1.0854871,659.88,658.8,0.26392728]
[1749498364221,1.0854871,659.87,658.8,0.26392728]
[1749498364423,1.0854871,659.86,658.8,0.26392728]
[1749498364618,1.0854871,659.85,658.8,0.26392728]
[1749498364818,1.0854871,659.84,658.8,0.26392728]
[1749498365122,1.0854871,659.83,658.8,0.26392728]
[1749498365423,1.0854871,659.82,658.8,0.26392728]
[1749498365623,1.0854871,659.86,658.8,0.26392728]
[1749498365923,1.0854871,659.85,658.8,0.26392728]
[1749498366119,3.85141215,659.87,658.8,0.26392728]
[1749498366321,1.6126851,659.86,658.8,0.26392728]
[1749498366620,1.0854871,659.85,658.8,0.26392728]
[1749498366819,2.78263333,659.91,658.8,0.26392728]
[1749498367020,2.68127051,659.9,658.8,0.26392728]
[1749498367222,2.15407131,659.89,658.8,0.26392728]
[1749498367420,3.8495141,659.88,658.8,0.26392728]
[1749498367620,1.0854871,659.87,658.8,0.26392728]
[1749498367822,1.0854871,659.86,658.8,0.26392728]
[1749498368121,1.0854871,659.85,658.8,0.26392728]
[1749498368326,3.91082767,659.91,658.8,0.26392728]
[1749498368526,2.68127194,659.9,658.8,0.26392728]
[1749498368724,3.32231637,659.89,658.8,0.26392728]
[1749498368923,3.32238359,659.88,658.8,0.26392728]
[1749498369227,3.84957844,659.87,658.8,0.26392728]
[1749498369426,1.0854871,659.86,658.8,0.26392728]
[1749498369624,1.0854871,659.85,658.8,0.26392728]
[1749498369821,1.0854871,659.89,658.8,0.26392728]
[1749498370025,1.0854871,659.88,658.8,0.26392728]
[1749498370224,1.0854871,659.87,658.8,0.26392728]
[1749498370427,1.0854871,659.86,658.8,0.26392728]
[1749498370627,1.0854871,659.85,658.8,0.26392728]
[1749498370826,1.16823625,659.89,658.8,0.26392728]
[1749498370827,1.0854871,659.88,658.8,0.26392728]
[1749498371027,1.0854871,659.87,658.8,0.26392728]
[1749498371231,1.0854871,659.86,658.8,0.26392728]
[1749498371531,1.0854871,659.85,658.8,0.26392728]
[1749498371831,1.0854871,659.9,658.8,0.26392728]
[1749498372026,1.0854871,659.89,658.8,0.26392728]
[1749498372229,3.32347813,659.9,658.8,0.26392728]
[1749498372428,1.0854871,659.89,658.8,0.26392728]
[1749498372832,3.85081938,659.89,658.8,0.26392728]
[1749498373131,3.85081938,659.88,658.8,0.26392728]
[1749498373333,3.85081938,659.87,658.8,0.26392728]
[1749498373528,3.32356784,659.86,658.8,0.26392728]
[1749498373729,2.25429097,659.85,658.8,0.26392728]
[1749498374033,1.0854871,659.84,658.8,0.26392728]
[1749498374330,2.78146012,659.98,658.8,0.26392728]
[1749498374530,2.78146012,659.97,658.8,0.26392728]
[1749498374833,3.85096466,659.96,658.8,0.26392728]
[1749498375134,3.85093456,659.95,658.8,0.26392728]
[1749498375330,3.85093456,659.94,658.8,0.26392728]
[1749498375530,3.32151739,659.93,658.8,0.26392728]
[1749498375730,3.84571053,659.92,658.8,0.26392728]
[1749498376038,1.61160949,659.91,658.8,0.26392728]
[1749498376234,1.0854871,659.9,658.8,0.26392728]
[1749498376434,1.0854871,659.89,658.8,0.26392728]
[1749498376631,3.84570737,659.94,658.8,0.26392728]
[1749498376836,3.84570737,659.93,658.8,0.26392728]
[1749498377035,3.84570737,659.92,658.8,0.26392728]
[1749498377233,3.84548668,659.91,658.8,0.26392728]
[1749498377536,1.12989519,659.96,658.8,0.26392728]
[1749498377537,2.15281247,659.9,658.8,0.26392728]
[1749498377737,1.0854871,659.89,658.8,0.26392728]
[1749498377935,1.0854871,659.88,658.8,0.26392728]
[1749498378238,1.0854871,659.87,658.8,0.26392728]
[1749498378434,1.0854871,659.86,658.8,0.26392728]
[1749498378638,1.0854871,659.85,658.8,0.26392728]
[1749498378933,1.0854871,659.84,658.8,0.26392728]
[1749498379132,1.0854871,659.83,658.8,0.26392728]
[1749498379336,1.0854871,659.82,658.8,0.26392728]
[1749498379637,1.0854871,659.81,658.8,0.26392728]
[1749498379834,1.0854871,659.8,658.8,0.26392728]
[1749498380036,1.0854871,659.79,658.8,0.26392728]
[1749498380236,1.0854871,659.78,658.8,0.26392728]
[1749498380436,1.0854871,659.77,658.8,0.26392728]
[1749498380634,1.0854871,659.76,658.8,0.26392728]
[1749498380837,2.15208474,659.84,658.8,0.26392728]
[1749498381035,2.77669664,659.83,658.8,0.26392728]
[1749498381235,2.77669889,659.82,658.8,0.26392728]
[1749498381432,1.0854871,659.81,658.8,0.26392728]
[1749498381634,1.0854871,659.8,658.8,0.26392728]
[1749498381835,1.0854871,659.79,658.8,0.26392728]
[1749498382038,1.0854871,659.78,658.8,0.26392728]
[1749498382235,1.0854871,659.77,658.8,0.26392728]
[1749498382437,1.0854871,659.76,658.8,0.26392728]
[1749498382635,1.0854871,659.75,658.55,0.30369751]
[1749498382939,1.0854871,659.74,658.74,0.26396432]
[1749498383135,1.0854871,659.73,658.74,0.26396432]
[1749498383350,1.0854871,659.72,658.74,0.26396432]
[1749498383641,1.0854871,659.71,658.74,0.26396432]
[1749498383937,2.1525616,659.78,658.74,0.26396432]
[1749498384137,1.0854871,659.77,658.74,0.26396432]
[1749498384437,1.0854871,659.76,658.74,0.26396432]
[1749498384646,1.0854871,659.75,658.74,0.26396432]
[1749498384838,1.0854871,659.74,658.74,0.26396432]
[1749498385139,1.0854871,659.73,658.74,0.26396432]
[1749498385342,1.0854871,659.72,658.74,0.26396432]
[1749498385538,2.25064264,659.79,658.74,0.26396432]
[1749498385739,3.84210807,659.78,658.74,0.26396432]
[1749498385942,1.0854871,659.77,658.74,0.26396432]
[1749498386139,1.0854871,659.76,658.74,0.26396432]
[1749498386342,1.0854871,659.75,658.74,0.26396432]
[1749498386642,1.0854871,659.74,658.74,0.26396432]
[1749498386846,1.0854871,659.73,658.74,0.26396432]
[1749498387048,1.0854871,659.72,658.74,0.26396432]
[1749498387346,1.0854871,659.71,658.74,0.26396432]
[1749498387546,3.8381376,659.83,658.74,0.26396432]
[1749498387744,1.60978422,659.82,658.74,0.26396432]
[1749498387944,1.0854871,659.81,658.74,0.26396432]
[1749498388147,2.15035597,659.8,658.74,0.26396432]
[1749498388343,3.3118968,659.79,658.74,0.26396432]
[1749498388543,2.77107158,659.78,658.74,0.26396432]
[1749498388848,2.77105933,659.77,658.74,0.26396432]
[1749498389146,3.83592426,659.76,658.74,0.26396432]
[1749498389346,3.31188919,659.75,658.74,0.26396432]
[1749498389649,2.14949739,659.74,658.74,0.26396432]
[1749498389842,3.31103736,659.73,658.74,0.26396432]
[1749498390042,2.14949451,659.72,658.74,0.26396432]
[1749498390245,1.0854871,659.71,658.74,0.26396432]
[1749498390442,1.0854871,659.7,658.74,0.26396432]
[1749498390746,1.0854871,659.69,658.74,0.26396432]
[1749498390944,1.0854871,659.68,658.74,0.26396432]
[1749498391144,1.0854871,659.67,658.74,0.26396432]
[1749498391342,1.0854871,659.66,658.74,0.26396432]
[1749498391545,1.0854871,659.65,658.74,0.26396432]
[1749498391745,1.0854871,659.64,658.55,0.30369751]
[1749498391946,1.0854871,659.63,658.64,0.26399536]
[1749498392143,1.0854871,659.62,658.64,0.26399536]
[1749498392347,0.52397752,659.74,658.64,0.26399536]
[1749498392348,1.0854871,659.61,658.64,0.26399536]
[1749498392543,1.0854871,659.6,658.64,0.26399536]
[1749498392744,3.31305014,659.69,658.64,0.26399536]
[1749498392943,1.0854871,659.68,658.64,0.26399536]
[1749498393141,1.0854871,659.67,658.64,0.26399536]
[1749498393343,1.0854871,659.66,658.64,0.26399536]
[1749498393546,2.14947592,659.65,658.64,0.26399536]
[1749498393742,3.83827665,659.64,658.64,0.26399536]
[1749498393948,2.6743204,659.63,658.64,0.26399536]
[1749498394145,1.0854871,659.62,658.64,0.26399536]
[1749498394349,1.0854871,659.61,658.64,0.26399536]
[1749498394546,1.0854871,659.6,658.64,0.26399536]
[1749498394745,3.83827793,659.68,658.64,0.26399536]
[1749498394949,2.77459855,659.67,658.64,0.26399536]
[1749498395150,1.0854871,659.66,658.64,0.26399536]
[1749498395445,1.0854871,659.65,658.64,0.26399536]
[1749498395748,1.0854871,659.64,658.64,0.26399536]
[1749498395949,1.0854871,659.63,658.64,0.26399536]
[1749498396150,1.12989519,659.71,658.64,0.26399536]
[1749498396151,1.0854871,659.62,658.64,0.26399536]
[1749498396350,1.0854871,659.61,658.64,0.26399536]
[1749498396650,1.0854871,659.6,658.64,0.26399536]
[1749498396847,1.0854871,659.68,658.64,0.26399536]
[1749498397049,1.0854871,659.67,658.64,0.26399536]
[1749498397254,1.0854871,659.66,658.64,0.26399536]
[1749498397453,1.0854871,659.65,658.64,0.26399536]
[1749498397757,1.0854871,659.64,658.64,0.26399536]
[1749498397954,1.0854871,659.63,658.64,0.26399536]
[1749498398159,1.0854871,659.62,658.64,0.26399536]
[1749498398353,1.0854871,659.61,658.64,0.26399536]
[1749498398558,1.0854871,659.6,658.64,0.26399536]
[1749498398856,3.32252452,659.69,658.64,0.26399536]
[1749498399158,1.16795661,659.68,658.64,0.26399536]
[1749498399357,1.07808544,659.67,658.64,0.26399536]
[1749498399560,1.07808544,659.66,658.64,0.26399536]
[1749498399757,1.07808544,659.65,658.64,0.26399536]
[1749498399955,1.07808544,659.64,658.64,0.26399536]
[1749498400256,1.07808544,659.63,658.64,0.26399536]
[1749498400559,1.07808544,659.62,658.64,0.26399536]
[1749498400759,1.60430125,659.66,658.64,0.26399536]
[1749498400958,1.07808544,659.65,658.64,0.26399536]
[1749498401258,1.07808544,659.64,658.64,0.26399536]
[1749498401461,1.07808544,659.63,658.64,0.26399536]
[1749498401760,1.12624293,659.7,658.64,0.26399536]
[1749498401761,1.07808544,659.62,658.64,0.26399536]
[1749498401960,2.14787319,659.64,658.64,0.26399536]
[1749498402162,1.07808544,659.63,658.64,0.26399536]
[1749498402455,1.07808544,659.67,658.64,0.26399536]
[1749498402661,1.07808544,659.66,658.64,0.26399536]
[1749498402962,1.07808544,659.65,658.64,0.26399536]
[1749498403159,1.07808544,659.64,658.64,0.26399536]
[1749498403463,2.67408604,659.67,658.64,0.26399536]
[1749498403655,2.24505236,659.66,658.64,0.26399536]
[1749498403961,2.24501307,659.65,658.64,0.26399536]
[1749498404157,1.60411523,659.64,658.64,0.26399536]
[1749498404357,2.77205345,659.7,658.64,0.26399536]
[1749498404561,1.60509081,659.69,658.64,0.26399536]
[1749498404858,1.07906958,659.68,658.64,0.26399536]
[1749498405158,1.07906958,659.67,658.64,0.26399536]
[1749498405363,1.07906958,659.66,658.64,0.26399536]
[1749498405557,1.50978757,659.85,658.64,0.26399536]
[1749498405558,1.07906958,659.65,658.64,0.26399536]
[1749498405859,1.07906958,659.64,658.64,0.26399536]
[1749498406057,1.07906958,659.65,658.64,0.26399536]
[1749498406259,3.84289854,659.69,658.64,0.26399536]
[1749498406458,1.07906958,659.68,658.64,0.26399536]
[1749498406658,1.07906958,659.67,658.64,0.26399536]
[1749498406862,1.07906958,659.66,658.64,0.26399536]
[1749498407063,2.77276936,659.71,658.64,0.26399536]
[1749498407263,2.77282725,659.7,658.64,0.26399536]
[1749498407458,2.77279172,659.69,658.64,0.26399536]
[1749498407665,2.24730794,659.68,658.64,0.26399536]
[1749498407861,2.24731147,659.67,658.64,0.26399536]
[1749498408064,1.07906958,659.66,658.64,0.26399536]
[1749498408261,1.07906958,659.76,658.64,0.26399536]
[1749498408461,1.07906958,659.75,658.64,0.26399536]
[1749498408661,1.07906958,659.74,658.64,0.26399536]
[1749498408964,1.07906958,659.73,658.64,0.26399536]
[1749498409165,0.26397033,659.49,658.64,0.26399536]
[1749498432187,1.08287632,659.65,658.64,0.26399536]
[1749498432387,0.26396031,659.58,658.64,0.26399536]
[1749498433588,0.26396031,659.58,658.65,0.3036514]
[1749498434591,1.08287632,659.57,658.65,0.3036514]
[1749498434793,1.08287632,659.56,658.65,0.3036514]
[1749498434996,1.08287632,659.55,658.65,0.3036514]
[1749498435188,1.08287632,659.54,658.65,0.3036514]
[1749498435392,1.08287632,659.53,658.65,0.3036514]
[1749498435592,1.08287632,659.52,658.65,0.3036514]
[1749498435793,1.08287632,659.51,658.65,0.3036514]
[1749498435990,1.08287632,659.5,658.65,0.3036514]
[1749498436195,1.08287632,659.49,658.65,0.3036514]
[1749498436397,1.08287632,659.48,658.65,0.3036514]
[1749498436596,1.08287632,659.57,658.65,0.3036514]
[1749498436793,1.08287632,659.56,658.65,0.3036514]
[1749498436997,1.08287632,659.55,658.65,0.3036514]
[1749498437193,1.08287632,659.54,658.65,0.3036514]
[1749498437391,1.08287632,659.53,658.65,0.3036514]
[1749498437594,1.08287632,659.52,658.65,0.3036514]
[1749498437793,1.08287632,659.51,658.65,0.3036514]
[1749498437994,1.08287632,659.5,658.65,0.3036514]
[1749498438197,1.08287632,659.49,658.65,0.3036514]
[1749498438398,1.08287632,659.48,658.65,0.3036514]
[1749498438593,1.08287632,659.47,658.65,0.3036514]
[1749498438793,1.08287632,659.46,658.65,0.3036514]
[1749498438996,1.08287632,659.45,658.65,0.3036514]
[1749498439197,1.08287632,659.57,658.65,0.3036514]
[1749498439398,1.08287632,659.56,658.65,0.3036514]
[1749498439698,1.08287632,659.55,658.65,0.3036514]
[1749498439896,1.08287632,659.54,658.65,0.3036514]
[1749498440095,1.08287632,659.53,658.65,0.3036514]
[1749498440301,1.08287632,659.52,658.65,0.3036514]
[1749498440502,1.08287632,659.51,658.65,0.3036514]
[1749498440700,1.08287632,659.5,658.65,0.3036514]
[1749498440901,1.08287632,659.49,658.65,0.3036514]
[1749498441104,1.08287632,659.48,658.65,0.3036514]
[1749498441402,1.08287632,659.47,658.65,0.3036514]
[1749498441598,1.08287632,659.46,658.65,0.3036514]
[1749498441806,1.08287632,659.45,658.65,0.3036514]
[1749498442000,1.08287632,659.44,658.65,0.3036514]
[1749498442206,1.08287632,659.57,658.65,0.3036514]
[1749498442404,1.08287632,659.56,658.65,0.3036514]
[1749498442604,0.26396031,659.58,658.65,0.3036514]
[1749498442605,1.08287632,659.55,658.65,0.3036514]
[1749498442804,1.08287632,659.54,658.65,0.3036514]
[1749498443000,1.08287632,659.53,658.65,0.3036514]
[1749498443200,1.08287632,659.52,658.65,0.3036514]
[1749498443404,1.08287632,659.51,658.65,0.3036514]
[1749498443603,1.08287632,659.5,658.65,0.3036514]
[1749498443805,1.08287632,659.49,658.65,0.3036514]
[1749498444001,1.08287632,659.48,658.65,0.3036514]
[1749498444301,1.08287632,659.57,658.65,0.3036514]
[1749498444501,1.08287632,659.56,658.65,0.3036514]
[1749498444706,1.08287632,659.55,658.65,0.3036514]
[1749498444900,1.08287632,659.54,658.65,0.3036514]
[1749498445100,1.08287632,659.53,658.65,0.3036514]
[1749498445302,1.08287632,659.52,658.65,0.3036514]
[1749498445506,1.08287632,659.51,658.65,0.3036514]
[1749498445807,1.08287632,659.5,658.65,0.3036514]
[1749498446107,1.08287632,659.49,658.65,0.3036514]
[1749498446300,1.08287632,659.48,658.65,0.3036514]
[1749498446504,1.08287632,659.57,658.65,0.3036514]
[1749498446704,1.08287632,659.56,658.65,0.3036514]
[1749498446905,1.08287632,659.55,658.65,0.3036514]
[1749498447104,1.08287632,659.54,658.65,0.3036514]
[1749498447402,1.08287632,659.53,658.65,0.3036514]
[1749498447603,1.08287632,659.52,658.65,0.3036514]
[1749498447802,1.08287632,659.51,658.65,0.3036514]
[1749498448006,1.08287632,659.5,658.65,0.3036514]
[1749498448205,1.08287632,659.49,658.65,0.3036514]
[1749498448501,1.08287632,659.48,658.65,0.3036514]
[1749498448701,1.08287632,659.47,658.65,0.3036514]
[1749498448906,1.08287632,659.57,658.65,0.3036514]
[1749498449104,1.08287632,659.56,658.65,0.3036514]
[1749498449302,1.08287632,659.55,658.65,0.3036514]
[1749498449601,1.08287632,659.54,658.65,0.3036514]
[1749498449807,1.08287632,659.53,658.65,0.3036514]
[1749498450002,1.08287632,659.52,658.65,0.3036514]
[1749498450203,1.08287632,659.51,658.65,0.3036514]
[1749498450407,1.08287632,659.5,658.65,0.3036514]
[1749498450607,1.08287632,659.49,658.65,0.3036514]
[1749498450810,1.08287632,659.57,658.65,0.3036514]
[1749498451009,1.08287632,659.56,658.65,0.3036514]
[1749498451210,1.08287632,659.55,658.65,0.3036514]
[1749498451509,1.08287632,659.54,658.65,0.3036514]
[1749498451710,1.08287632,659.53,658.65,0.3036514]
[1749498451910,1.08287632,659.52,658.65,0.3036514]
[1749498452110,1.08287632,659.51,658.65,0.3036514]
[1749498452306,1.08287632,659.5,658.65,0.3036514]
[1749498452608,1.08287632,659.57,658.65,0.3036514]
[1749498452807,1.08287632,659.56,658.65,0.3036514]
[1749498453007,1.08287632,659.55,658.65,0.3036514]
[1749498453210,1.08287632,659.54,658.65,0.3036514]
[1749498453410,1.08287632,659.53,658.65,0.3036514]
[1749498453607,1.08287632,659.52,658.65,0.3036514]
[1749498453806,0.26396031,659.58,658.65,0.3036514]